fUST/lending_fUST_20251126
["ID","MTS","AMOUNT","RATE_DAILY","PERIOD"]
[394902065,1764100239012,-783.14429289,9.872e-05,2]
[394902066,1764100239024,-399.0,0.0001,2]
[394902067,1764100239033,-168.3888056,0.0001,2]
[394902068,1764100239042,-783.14429289,0.00010399,2]
[394902069,1764100239051,-386.37,0.00010451,2]
[394902070,1764100239062,-174.61919141,0.00010548,2]
[394902071,1764100239072,-1000.0,0.00010551,2]
[394902072,1764100239082,-165.58,0.00010562,2]
[394902073,1764100239092,-990.0,0.00010649,2]
[394902074,1764100239102,-630.0,0.00010649,2]
[394902075,1764100239111,-2152.0,0.00010649,2]
[394902076,1764100239120,-408.254,0.00010811,2]
[394902077,1764100239130,-351.74999178,0.00010838,2]
[394902078,1764100239139,-783.14429289,0.00010927,2]
[394902079,1764100239149,-500.0,0.00010958,2]
[394902080,1764100239158,-500.0,0.00010958,2]
[394902081,1764100239167,-500.0,0.00010958,2]
[394902082,1764100239177,-500.0,0.00010958,2]
[394902083,1764100239186,-500.0,0.00010958,2]
[394902084,1764100239195,-500.0,0.00010958,2]
[394902085,1764100239205,-500.0,0.00010958,2]
[394902086,1764100239215,-500.0,0.00010958,2]
[394902087,1764100239224,-500.0,0.00010958,2]
[394902088,1764100239233,-500.0,0.00010958,2]
[394902089,1764100239243,-342.2936878,0.00010958,2]
[394902090,1764100239252,-314.78569172,0.00010958,2]
[394902091,1764100239263,-500.0,0.00010958,2]
[394902092,1764100239273,-500.0,0.00010958,2]
[394902093,1764100239284,-500.0,0.00010958,2]
[394902094,1764100239293,-500.0,0.00010958,2]
[394902095,1764100239303,-500.0,0.00010958,2]
[394902096,1764100239313,-1000.0,0.00010958,2]
[394902097,1764100239322,-500.0,0.00010958,2]
[394902098,1764100239332,-500.0,0.00010958,2]
[394902099,1764100239341,-500.0,0.00010958,2]
[394902100,1764100239351,-500.0,0.00010958,2]
[394902101,1764100239360,-500.0,0.00010958,2]
[394902102,1764100239369,-2299.57,0.00010958,2]
[394902103,1764100239379,-500.0,0.00010958,2]
[394902104,1764100239388,-500.0,0.00010958,2]
[394902105,1764100239397,-809.09,0.00010958,2]
[394902106,1764100239406,-500.0,0.00010958,2]
[394902107,1764100239415,-2597.97,0.00010958,2]
[394902108,1764100239424,-500.0,0.00010958,2]
[394902109,1764100239434,-500.0,0.00010958,2]
[394902110,1764100239443,-500.0,0.00010958,2]
[394902111,1764100239452,-500.0,0.00010958,2]
[394902112,1764100239461,-500.0,0.00010958,2]
[394902113,1764100239471,-500.0,0.00010958,2]
[394902114,1764100239484,-500.0,0.00010958,2]
[394902115,1764100239495,-707.51,0.00010958,2]
[394902116,1764100239504,-500.0,0.00010958,2]
[394902117,1764100239701,-500.0,0.00010958,2]
[394902118,1764100239712,-252.33445718,0.00010958,2]
[394902119,1764100239722,-244.5675389,0.00010958,2]
[394902120,1764100239733,-500.0,0.00010958,2]
[394902121,1764100239742,-572.26,0.00010958,2]
[394902122,1764100239752,-500.0,0.00010958,2]
[394902123,1764100239761,-500.0,0.00010958,2]
[394902124,1764100239772,-500.0,0.00010958,2]
[394902125,1764100239781,-991.66,0.00010958,2]
[394902126,1764100239789,-848.4,0.00010958,2]
[394902127,1764100239798,-500.0,0.00010958,2]
[394902128,1764100239808,-530.95859302,0.00010958,2]
[394902129,1764100239817,-623.03,0.00010958,2]
[394902130,1764100239827,-926.21,0.00010958,2]
[394902131,1764100239836,-1457.86,0.00010958,2]
[394902132,1764100239845,-1919.84,0.00010958,2]
[394902133,1764100239855,-511.81788324,0.00010958,2]
[394902134,1764100239864,-507.10109697,0.00010958,2]
[394902135,1764100239873,-1134.38,0.00010958,2]
[394902136,1764100239882,-508.56,0.00010958,2]
[394902137,1764100239891,-1229.36,0.00010958,2]
[394902138,1764100239901,-500.0,0.00010958,2]
[394902139,1764100239911,-575.98111882,0.00010958,2]
[394902140,1764100239919,-928.16,0.00010958,2]
[394902141,1764100239930,-500.0,0.00010958,2]
[394902142,1764100239939,-500.0,0.00010958,2]
[394902143,1764100239948,-500.0,0.00010958,2]
[394902144,1764100239957,-500.0,0.00010958,2]
[394902145,1764100239966,-500.0,0.00010958,2]
[394902146,1764100239975,-623.66378768,0.00010958,2]
[394902147,1764100239984,-500.0,0.00010958,2]
[394902148,1764100239995,-803.87,0.00010958,2]
[394902149,1764100240005,-514.16,0.00010958,2]
[394902150,1764100240014,-1203.45,0.00010958,2]
[394902151,1764100240025,-500.0,0.00010958,2]
[394902152,1764100240034,-500.0,0.00010958,2]
[394902153,1764100240043,-1967.52,0.00010958,2]
[394902154,1764100240053,-500.0,0.00010958,2]
[394902155,1764100240062,-500.0,0.00010958,2]
[394902156,1764100240071,-500.0,0.00010958,2]
[394902158,1764100240081,-500.0,0.00010958,2]
[394902160,1764100240091,-1586.87,0.00010958,2]
[394902162,1764100240102,-1606.28,0.00010958,2]
[394902163,1764100240112,-500.0,0.00010958,2]
[394902164,1764100240122,-500.0,0.00010958,2]
[394902165,1764100240131,-500.0,0.00010958,2]
[394902166,1764100240143,-500.0,0.00010958,2]
[394902167,1764100240152,-1139.63,0.00010958,2]
[394902168,1764100240161,-500.0,0.00010958,2]
[394902169,1764100240171,-500.0,0.00010958,2]
[394902170,1764100240180,-165.23507904,0.00010958,2]
[394902171,1764100240190,-500.0,0.00010958,2]
[394902172,1764100240200,-500.0,0.00010958,2]
[394902173,1764100240212,-1256.59,0.00010958,2]
[394902174,1764100240222,-500.0,0.00010958,2]
[394902175,1764100240232,-500.0,0.00010958,2]
[394902176,1764100240242,-1025.72,0.00010958,2]
[394902177,1764100240253,-709.07,0.00010958,2]
[394902178,1764100240263,-500.0,0.00010958,2]
[394902179,1764100240274,-500.0,0.00010958,2]
[394902180,1764100240284,-6246.56,0.00010958,2]
[394902181,1764100240294,-500.0,0.00010958,2]
[394902182,1764100240304,-500.0,0.00010958,2]
[394902183,1764100240313,-500.0,0.00010958,2]
[394902184,1764100240323,-500.0,0.00010958,2]
[394902185,1764100240332,-500.0,0.00010958,2]
[394902187,1764100240342,-500.0,0.00010958,2]
[394902189,1764100240352,-500.0,0.00010958,2]
[394902191,1764100240361,-500.0,0.00010958,2]
[394902193,1764100240370,-500.0,0.00010958,2]
[394902195,1764100240380,-759.74,0.00010958,2]
[394902197,1764100240390,-500.0,0.00010958,2]
[394902198,1764100240400,-500.0,0.00010958,2]
[394902199,1764100240409,-500.0,0.00010958,2]
[394902200,1764100240422,-500.0,0.00010958,2]
[394902201,1764100240432,-500.0,0.00010958,2]
[394902202,1764100240442,-500.0,0.00010958,2]
[394902203,1764100240451,-1092.87,0.00010958,2]
[394902204,1764100240460,-500.0,0.00010958,2]
[394902205,1764100240469,-500.0,0.00010958,2]
[394902206,1764100240480,-573.28,0.00010958,2]
[394902207,1764100240492,-534.44,0.00010958,2]
[394902208,1764100240501,-500.0,0.00010958,2]
[394902209,1764100240510,-547.87,0.00010958,2]
[394902210,1764100240520,-500.0,0.00010958,2]
[394902211,1764100240530,-500.0,0.00010958,2]
[394902212,1764100240540,-500.0,0.00010958,2]
[394902213,1764100240549,-645.29,0.00010958,2]
[394902214,1764100240562,-841.1,0.00010958,2]
[394902215,1764100240571,-500.0,0.00010958,2]
[394902216,1764100240581,-500.0,0.00010958,2]
[394902217,1764100240590,-500.0,0.00010958,2]
[394902218,1764100240599,-1004.53,0.00010958,2]
[394902219,1764100240608,-500.0,0.00010958,2]
[394902220,1764100240617,-975.71,0.00010958,2]
[394902221,1764100240626,-500.0,0.00010958,2]
[394902222,1764100240635,-563.95,0.00010958,2]
[394902223,1764100240644,-500.0,0.00010958,2]
[394902224,1764100240654,-500.0,0.00010958,2]
[394902225,1764100240663,-500.0,0.00010958,2]
[394902226,1764100240673,-500.0,0.00010958,2]
[394902227,1764100240682,-500.0,0.00010958,2]
[394902228,1764100240692,-519.43703209,0.00010958,2]
[394902229,1764100240701,-581.77,0.00010958,2]
[394902230,1764100240711,-500.0,0.00010958,2]
[394902231,1764100240722,-581.16,0.00010958,2]
[394902232,1764100240732,-500.0,0.00010958,2]
[394902233,1764100240743,-1310.14,0.00010958,2]
[394902234,1764100240753,-500.0,0.00010958,2]
[394902235,1764100240763,-1754.59,0.00010958,2]
[394902236,1764100240774,-4104.63,0.00010958,2]
[394902237,1764100240784,-1404.72,0.00010958,2]
[394902238,1764100240795,-500.0,0.00010958,2]
[394902239,1764100240805,-949.32,0.00010958,2]
[394902241,1764100240817,-678.22,0.00010958,2]
[394902242,1764100240828,-500.0,0.00010958,2]
[394902244,1764100240837,-500.0,0.00010958,2]
[394902245,1764100240846,-500.0,0.00010958,2]
[394902247,1764100240857,-2216.71,0.00010958,2]
[394902248,1764100240867,-1639.1,0.00010958,2]
[394902249,1764100240876,-500.0,0.00010958,2]
[394902250,1764100240886,-2161.11,0.00010958,2]
[394902251,1764100240898,-1135.97,0.00010958,2]
[394902252,1764100240908,-500.0,0.00010958,2]
[394902253,1764100240920,-500.0,0.00010958,2]
[394902254,1764100240930,-500.0,0.00010958,2]
[394902255,1764100240940,-1635.29,0.00010958,2]
[394902256,1764100240950,-692.44,0.00010958,2]
[394902257,1764100240960,-500.0,0.00010958,2]
[394902258,1764100240971,-500.0,0.00010958,2]
[394902259,1764100240981,-833.97,0.00010958,2]
[394902260,1764100240991,-1448.6,0.00010958,2]
[394902261,1764100241000,-500.0,0.00010958,2]
[394902262,1764100241011,-500.0,0.00010958,2]
[394902263,1764100241022,-3521.18,0.00010958,2]
[394902264,1764100241032,-500.0,0.00010958,2]
[394902265,1764100241041,-500.0,0.00010958,2]
[394902266,1764100241051,-1108.38,0.00010958,2]
[394902267,1764100241062,-500.0,0.00010958,2]
[394902268,1764100241072,-500.0,0.00010958,2]
[394902269,1764100241082,-500.0,0.00010958,2]
[394902270,1764100241092,-500.0,0.00010958,2]
[394902271,1764100241102,-2637.43,0.00010958,2]
[394902272,1764100241112,-560.85,0.00010958,2]
[394902273,1764100241122,-399.42137234,0.00010958,2]
[394902274,1764100241133,-500.0,0.00010958,2]
[394902275,1764100241143,-500.0,0.00010958,2]
[394902276,1764100241153,-4711.2,0.00010958,2]
[394902277,1764100241163,-2351.54,0.00010958,2]
[394902278,1764100241173,-1648.24,0.00010958,2]
[394902279,1764100241184,-999.46,0.00010958,2]
[394902280,1764100241194,-500.0,0.00010958,2]
[394902281,1764100241204,-639.91,0.00010958,2]
[394902282,1764100241215,-500.0,0.00010958,2]
[394902283,1764100241225,-500.0,0.00010958,2]
[394902284,1764100241236,-1135.25,0.00010958,2]
[394902285,1764100241245,-500.0,0.00010958,2]
[394902286,1764100241255,-2301.61,0.00010958,2]
[394902287,1764100241266,-1096.92,0.00010958,2]
[394902288,1764100241277,-500.0,0.00010958,2]
[394902289,1764100241288,-500.0,0.00010958,2]
[394902290,1764100241298,-843.49,0.00010958,2]
[394902291,1764100241308,-500.0,0.00010958,2]
[394902292,1764100241318,-4098.93,0.00010958,2]
[394902293,1764100241329,-2410.43,0.00010958,2]
[394902294,1764100241339,-153.61734498,0.00010958,2]
[394902295,1764100241349,-500.0,0.00010958,2]
[394902296,1764100241359,-2094.07,0.00010958,2]
[394902297,1764100241370,-500.0,0.00010958,2]
[394902298,1764100241380,-500.0,0.00010958,2]
[394902299,1764100241391,-2123.77,0.00010958,2]
[394902300,1764100241401,-500.0,0.00010958,2]
[394902301,1764100241411,-500.0,0.00010958,2]
[394902302,1764100241421,-500.0,0.00010958,2]
[394902303,1764100241432,-677.3,0.00010958,2]
[394902304,1764100241442,-775.51,0.00010958,2]
[394902305,1764100241453,-901.52,0.00010958,2]
[394902306,1764100241463,-785.92,0.00010958,2]
[394902307,1764100241473,-500.0,0.00010958,2]
[394902308,1764100241485,-500.0,0.00010958,2]
[394902309,1764100241494,-565.3,0.00010958,2]
[394902310,1764100241504,-500.0,0.00010958,2]
[394902311,1764100241514,-500.0,0.00010958,2]
[394902312,1764100241526,-500.0,0.00010958,2]
[394902313,1764100241536,-10095.53,0.00010958,2]
[394902314,1764100241547,-534.95,0.00010958,2]
[394902315,1764100241558,-500.0,0.00010958,2]
[394902316,1764100241568,-2178.5,0.00010958,2]
[394902317,1764100241579,-1733.99,0.00010958,2]
[394902318,1764100241589,-947.87,0.00010958,2]
[394902319,1764100241601,-500.0,0.00010958,2]
[394902320,1764100241610,-500.0,0.00010958,2]
[394902321,1764100241620,-500.0,0.00010958,2]
[394902322,1764100241630,-500.0,0.00010958,2]
[394902323,1764100241644,-500.0,0.00010958,2]
[394902324,1764100241654,-1044.7,0.00010958,2]
[394902325,1764100241665,-423.38257953,0.00010958,2]
[394902326,1764100241676,-251.50211761,0.00010958,2]
[394902327,1764100241686,-500.0,0.00010958,2]
[394902328,1764100241696,-543.16,0.00010958,2]
[394902329,1764100241705,-500.0,0.00010958,2]
[394902330,1764100241716,-166.66,0.00010958,2]
[394902331,1764100241726,-500.0,0.00010958,2]
[394902332,1764100241737,-500.0,0.00010958,2]
[394902333,1764100241748,-500.0,0.00010958,2]
[394902334,1764100241758,-1041.92,0.00010958,2]
[394902335,1764100241769,-500.0,0.00010958,2]
[394902336,1764100241779,-1654.12,0.00010958,2]
[394902337,1764100241789,-816.04,0.00010958,2]
[394902338,1764100241800,-500.0,0.00010958,2]
[394902339,1764100241810,-500.0,0.00010958,2]
[394902340,1764100241820,-500.0,0.00010958,2]
[394902341,1764100241829,-500.0,0.00010958,2]
[394902342,1764100241840,-500.0,0.00010958,2]
[394902343,1764100241851,-1105.72815696,0.00010958,2]
[394902344,1764100242668,-264.18184304,0.00010958,2]
[394902345,1764100242679,-500.0,0.00010958,2]
[394902346,1764100242690,-500.0,0.00010958,2]
[394902347,1764100242701,-500.0,0.00010958,2]
[394902348,1764100242713,-500.0,0.00010958,2]
[394902349,1764100242724,-500.0,0.00010958,2]
[394902350,1764100242733,-1035.83060196,0.00010959,2]
[394902351,1764100242745,-288.25736153,0.00010959,2]
[394902382,1764100247253,-500.0,0.00010958,2]
[394902384,1764100247263,-2489.72,0.00010958,2]
[394902386,1764100247275,-500.0,0.00010958,2]
[394902388,1764100247286,-175.91203651,0.00010959,2]
[394902389,1764100247298,-3109.7797071,0.00010959,2]
[394902390,1764100247316,-19115.48805286,0.00010959,2]
[394902394,1764101146923,150.0,0.000198,30]
[394902395,1764101430108,150.0,0.00019509,30]
[394902432,1764101431758,-835.0,6.781e-05,2]
[394902433,1764101431767,-626.0,6.849e-05,2]
[394902435,1764101431777,-209.0,6.849e-05,2]
[394902437,1764101431786,-240.32800909,6.884e-05,2]
[394902439,1764101431795,-300.0,7.648e-05,2]
[394902441,1764101431804,-1200.0,7.648e-05,2]
[394902443,1764101431813,-2152.0,7.649e-05,2]
[394902445,1764101431823,-990.0,7.649e-05,2]
[394902447,1764101431832,-630.0,7.649e-05,2]
[394902449,1764101431843,-414.0,7.649e-05,2]
[394902452,1764101431855,-300.0,7.801e-05,2]
[394902455,1764101431867,-300.0,7.801e-05,2]
[394902457,1764101431876,-300.0,7.801e-05,2]
[394902460,1764101431885,-300.0,7.801e-05,2]
[394902464,1764101431897,-300.0,7.801e-05,2]
[394902467,1764101431906,-174.67199091,7.801e-05,2]
[394902470,1764101431918,-125.32800909,7.801e-05,2]
[394902472,1764101431928,-300.0,7.801e-05,2]
[394902473,1764101431937,-300.0,7.801e-05,2]
[394902474,1764101431946,-300.0,7.801e-05,2]
[394902475,1764101431956,-300.0,7.801e-05,2]
[394902476,1764101431965,-300.0,7.801e-05,2]
[394902477,1764101431974,-300.0,7.801e-05,2]
[394902478,1764101431983,-300.0,7.801e-05,2]
[394902479,1764101431992,-300.0,7.801e-05,2]
[394902480,1764101432001,-300.0,7.801e-05,2]
[394902481,1764101432011,-420.0,8.413e-05,2]
[394902482,1764101432020,-160.0,8.524e-05,2]
[394902483,1764101432029,-865.02701608,8.797e-05,2]
[394902484,1764101432038,-283.58705072,8.884e-05,2]
[394902485,1764101432048,-587.0,9.254e-05,2]
[394902486,1764101432058,-600.0,9.572e-05,2]
[394902487,1764101432068,-399.0,0.0001,2]
[394902488,1764101432077,-823.0,0.0001018,2]
[394902489,1764101432086,-720.0,0.00010529,2]
[394902490,1764101432097,-2152.0,0.00010649,2]
[394902491,1764101432106,-399.656,0.00010649,2]
[394902492,1764101432115,-630.0,0.00010649,2]
[394902493,1764101432124,-414.0,0.00010649,2]
[394902494,1764101432133,-326.603,0.00010857,2]
[394902495,1764101432142,-500.0,0.00010857,2]
[394902496,1764101432151,-93.79472396,0.00010857,2]
[394902761,1764101446076,-326.3384012,9.331e-05,2]
[394902762,1764101573849,150.0,0.00018569,30]
[394902763,1764101648685,150.0,0.00017669,30]
[394902764,1764101649416,150.0,0.00019275,30]
[394902765,1764102356847,150.0,8.523e-05,30]
[394902766,1764102357278,150.0,9.298e-05,30]
[394902767,1764102357674,150.0,0.00010072,30]
[394902768,1764102358068,150.0,0.00010847,30]
[394902769,1764102358479,150.0,0.00011622,30]
[394902770,1764102429097,150.0,8.521e-05,30]
[394902771,1764102429500,150.0,9.296e-05,30]
[394902772,1764102429938,150.0,0.00010071,30]
[394902785,1764102632313,-581.0,6.775e-05,2]
[394902786,1764102632326,-372.0,6.843e-05,2]
[394902787,1764102632335,-209.0,6.843e-05,2]
[394902788,1764102632344,-229.84970789,7.089e-05,2]
[394902789,1764102632353,-300.0,7.638e-05,2]
[394902790,1764102632363,-500.0,7.639e-05,2]
[394902791,1764102632372,-500.0,7.639e-05,2]
[394902792,1764102632381,-500.0,7.639e-05,2]
[394902793,1764102632390,-500.0,7.639e-05,2]
[394902794,1764102632399,-300.0,7.8e-05,2]
[394902795,1764102632409,-300.0,7.8e-05,2]
[394902796,1764102632420,-300.0,7.8e-05,2]
[394902797,1764102632429,-300.0,7.8e-05,2]
[394902798,1764102632438,-300.0,7.8e-05,2]
[394902799,1764102632447,-300.0,7.8e-05,2]
[394902800,1764102632456,-300.0,7.8e-05,2]
[394902801,1764102632465,-300.0,7.8e-05,2]
[394902802,1764102632475,-300.0,7.8e-05,2]
[394902803,1764102632484,-300.0,7.8e-05,2]
[394902804,1764102632493,-300.0,7.8e-05,2]
[394902805,1764102632502,-300.0,7.8e-05,2]
[394902806,1764102632511,-300.0,7.8e-05,2]
[394902807,1764102632520,-300.0,7.8e-05,2]
[394902808,1764102632530,-300.0,7.8e-05,2]
[394902809,1764102632538,-600.0,7.8e-05,2]
[394902810,1764102632547,-2152.0,8.265e-05,2]
[394902811,1764102632557,-630.0,8.265e-05,2]
[394902812,1764102632565,-414.0,8.265e-05,2]
[394902813,1764102632575,-420.0,8.402e-05,2]
[394902814,1764102632583,-720.0,8.58e-05,2]
[394902815,1764102632593,-353.43546982,8.783e-05,2]
[394902816,1764102632602,-741.5929368,8.784e-05,2]
[394902817,1764102632611,-500.0,8.823e-05,2]
[394902818,1764102632620,-385.6705811,8.823e-05,2]
[394902819,1764102632629,-500.0,8.823e-05,2]
[394902820,1764102632638,-500.0,8.823e-05,2]
[394902821,1764102632648,-428.42701149,8.823e-05,2]
[394902822,1764102632657,-948.91549291,8.826e-05,2]
[394902855,1764102637980,-1652.02251246,7.562e-05,2]
[394902857,1764102637990,-160.0,7.574e-05,2]
[394902858,1764102638000,-500.0,7.638e-05,2]
[394902859,1764102638009,-500.0,7.638e-05,2]
[394902860,1764102638018,-152.02251246,7.638e-05,2]
[394902861,1764102638028,-500.0,7.638e-05,2]
[394902862,1764102638037,-500.0,7.638e-05,2]
[394902864,1764102638046,-500.0,7.638e-05,2]
[394902865,1764102638056,-500.0,7.638e-05,2]
[394902866,1764102638065,-500.0,7.638e-05,2]
[394902867,1764102638074,-550.0,7.638e-05,2]
[394902868,1764102638083,-500.0,7.638e-05,2]
[394902869,1764102638092,-500.0,7.638e-05,2]
[394902870,1764102638101,-500.0,7.638e-05,2]
[394902871,1764102638110,-500.0,7.638e-05,2]
[394902872,1764102638119,-500.0,7.638e-05,2]
[394902873,1764102638128,-149.15137387,7.638e-05,2]
[394902874,1764102638140,-350.84862613,7.638e-05,2]
[394902875,1764102638149,-629.43032891,8.826e-05,2]
[394902876,1764102638160,-397.54104496,8.826e-05,2]
[394902880,1764102640038,150.0,0.0001254,30]
[394902885,1764102640259,-113.99912492,8.826e-05,2]
[394902886,1764102640268,-271.22265531,9.089e-05,2]
[394902887,1764102640278,-587.0,9.242e-05,2]
[394902888,1764102640288,-63.61381754,9.438e-05,2]
[394902973,1764102713646,150.0,0.000154,30]
[394902974,1764103383734,-1712.0,7.189e-05,2]
[394902975,1764103383755,-97.0,7.226e-05,2]
[394903004,1764103832403,-447.96649465,7.064e-05,2]
[394903005,1764103832412,-236.96649465,7.135e-05,2]
[394903006,1764103832422,-211.0,7.135e-05,2]
[394903007,1764103832432,-236.96649465,7.28e-05,2]
[394903008,1764103832442,-353.43546982,7.573e-05,2]
[394903009,1764103832451,-160.0,7.573e-05,2]
[394903010,1764103832460,-300.0,7.628e-05,2]
[394903011,1764103832476,-1200.0,7.629e-05,2]
[394903012,1764103832486,-350.22472361,7.629e-05,2]
[394903013,1764103832496,-500.0,7.629e-05,2]
[394903014,1764103832506,-500.0,7.629e-05,2]
[394903015,1764103832516,-500.0,7.629e-05,2]
[394903016,1764103832526,-500.0,7.629e-05,2]
[394903017,1764103832536,-500.0,7.629e-05,2]
[394903018,1764103832545,-500.0,7.629e-05,2]
[394903019,1764103832555,-500.0,7.629e-05,2]
[394903020,1764103832564,-500.0,7.629e-05,2]
[394903021,1764103832574,-500.0,7.629e-05,2]
[394903022,1764103832584,-500.0,7.629e-05,2]
[394903023,1764103832593,-500.0,7.629e-05,2]
[394903024,1764103832602,-500.0,7.629e-05,2]
[394903025,1764103832611,-248.44032262,7.629e-05,2]
[394903032,1764103838131,-1585.83107435,7.553e-05,2]
[394903033,1764103838141,-251.55967738,7.629e-05,2]
[394903034,1764103838151,-585.83107435,7.629e-05,2]
[394903035,1764103838160,-300.0,7.789e-05,2]
[394903036,1764103838170,-300.0,7.789e-05,2]
[394903037,1764103838180,-300.0,7.789e-05,2]
[394903038,1764103838189,-300.0,7.789e-05,2]
[394903039,1764103838199,-300.0,7.789e-05,2]
[394903040,1764103838208,-300.0,7.789e-05,2]
[394903041,1764103838218,-300.0,7.789e-05,2]
[394903042,1764103838229,-300.0,7.789e-05,2]
[394903043,1764103838238,-300.0,7.789e-05,2]
[394903044,1764103838247,-300.0,7.789e-05,2]
[394903045,1764103838258,-300.0,7.789e-05,2]
[394903046,1764103838268,-300.0,7.789e-05,2]
[394903047,1764103838277,-300.0,7.789e-05,2]
[394903048,1764103838286,-300.0,7.789e-05,2]
[394903049,1764103838295,-300.0,7.789e-05,2]
[394903050,1764103838305,-600.0,7.789e-05,2]
[394903051,1764103838314,-3949.66563666,7.86e-05,2]
[394903052,1764103838323,-5687.51851678,7.86e-05,2]
[394903053,1764103838333,-7741.34464784,7.86e-05,2]
[394903054,1764103838342,-10101.03288581,7.86e-05,2]
[394903055,1764103838352,-8534.55903586,7.942e-05,2]
[394903056,1764103838360,-10536.49263686,7.942e-05,2]
[394903057,1764103838370,-12749.1560906,7.942e-05,2]
[394903058,1764103838379,-15172.54939708,7.942e-05,2]
[394903059,1764103838388,-4555.3087139,8.117e-05,2]
[394903060,1764103838397,-299.9847229,8.117e-05,2]
[394903061,1764103838406,-500.0,8.273e-05,2]
[394903062,1764103838416,-2538.69942752,8.274e-05,2]
[394903063,1764103838426,-1584.90302391,8.274e-05,2]
[394903064,1764103838437,-607.05199346,8.274e-05,2]
[394903065,1764103838449,-2321.28840933,8.274e-05,2]
[394903066,1764103838458,-7044.89091137,8.274e-05,2]
[394903067,1764103838467,-5668.15371695,8.36e-05,2]
[394903068,1764103838476,-4297.7861186,8.36e-05,2]
[394903083,1764103840221,-605.03365903,8.36e-05,2]
[394903084,1764103840234,-872.29,8.36e-05,2]
[394903085,1764103840245,-826.18160396,8.36e-05,2]
[394903129,1764103844967,-802.01143239,8.36e-05,2]
[394903130,1764103844977,-609.98856761,8.36e-05,2]
[394903131,1764103844988,-1166.30300781,8.36e-05,2]
[394903205,1764103846386,-7593.51354852,8.36e-05,2]
[394903207,1764103846402,-420.0,8.391e-05,2]
[394903209,1764103846412,-535.0,8.392e-05,2]
[394903211,1764103846421,-720.0,8.568e-05,2]
[394903213,1764103846431,-989.0,8.697e-05,2]
[394903215,1764103846440,-2152.0,8.697e-05,2]
[394903217,1764103846449,-671.8,8.697e-05,2]
[394903219,1764103846459,-1605.31371176,8.728e-05,2]
[394903221,1764103846468,-50000.0,8.779e-05,2]
[394903223,1764103846478,-956.52584226,8.779e-05,2]
[394903225,1764103846488,-1605.31371176,8.901e-05,2]
[394903227,1764103846497,-4555.3087139,8.948e-05,2]
[394903229,1764103846507,-1605.31371176,9.075e-05,2]
[394903231,1764103846516,-151.0,9.167e-05,2]
[394903232,1764103846526,-587.0,9.23e-05,2]
[394903233,1764103846535,-1605.31371176,9.248e-05,2]
[394903234,1764103846545,-279.62046369,9.28e-05,2]
[394903235,1764103846554,-1605.31371176,9.422e-05,2]
[394903236,1764103846563,-864.0,9.425e-05,2]
[394903237,1764103846573,-1605.31371176,9.595e-05,2]
[394903238,1764103846582,-1716.49051008,9.634e-05,2]
[394903239,1764103846591,-3383.8760248,9.71e-05,2]
[394903240,1764103846600,-1605.31371176,9.769e-05,2]
[394903241,1764103846609,-4555.3087139,9.779e-05,2]
[394903242,1764103846618,-1422.25866045,9.811e-05,2]
[394903243,1764103846630,-1605.31371176,9.942e-05,2]
[394903244,1764103846640,-168.39,9.952e-05,2]
[394903245,1764103846649,-163.5,9.952e-05,2]
[394903246,1764103846658,-163.5,9.952e-05,2]
[394903247,1764103846667,-163.5,9.952e-05,2]
[394903248,1764103846677,-163.47,9.952e-05,2]
[394903249,1764103846686,-399.0,0.0001,2]